bitfinex/quotes_SOLUSD_20230104
["timestamp","ask_amount","ask_price","bid_price","bid_amount"]
[1672798648202,126.3251,13.905,13.883,30.0]
[1672798648428,0.0030541,13.884,13.883,30.0]
[1672798648639,54.0,13.903,13.884,0.0569459]
[1672798648843,53.99,13.904,13.884,0.0569459]
[1672798649042,53.99,13.904,13.884,37.67507925]
[1672798649043,0.0050706,13.885,13.884,37.67507925]
[1672798649260,53.99,13.904,13.885,150.45446572]
[1672798649578,149.1793,13.914,13.892,100.98800243]
[1672798649776,149.1793,13.914,13.892,64.1501961]
[1672798649994,0.00838757,13.893,13.892,64.1501961]
[1672798650419,53.96,13.912,13.895,30.0]
[1672798650749,53.96,13.912,13.896,64.1501961]
[1672798651056,0.00631549,13.897,13.896,64.1501961]
[1672798651256,0.00631549,13.897,13.896,100.98800243]
[1672798651578,0.00631549,13.897,13.896,64.1501961]
[1672798651797,0.00631549,13.897,13.896,100.88253054]
[1672798652320,0.00631549,13.897,13.896,174.5581432]
[1672798652511,0.00631549,13.897,13.896,137.82580876]
[1672798652844,0.00631549,13.897,13.896,64.1501961]
[1672798653048,0.00631549,13.897,13.896,93.6501961]
[1672798653273,53.96,13.912,13.899,0.05368451]
[1672798653460,7.19476222,13.9,13.899,66.6984733]
[1672798653673,7.19476222,13.9,13.899,0.05368451]
[1672798653891,61.20476222,13.9,13.899,0.05368451]
[1672798655791,61.20476222,13.9,13.893,264.6]
[1672798655980,7.19476222,13.894,13.888,36.64633923]
[1672798656189,54.03,13.893,13.888,36.64633923]
[1672798656623,30.0,13.909,13.903,106.05667407]
[1672798656830,30.0,13.909,13.889,30.0]
[1672798657044,7.19994241,13.89,13.886,30.0]
[1672798657677,7.19994241,13.887,13.886,30.0]
[1672798658290,7.19994241,13.887,13.886,66.64633923]
[1672798658719,36.0,13.899,13.894,9.33090518]
[1672798659254,14.39470276,13.895,13.894,9.33090518]
[1672798659873,7.19735138,13.895,13.894,9.33090518]
[1672798660087,14.39470276,13.895,13.894,9.33090518]
[1672798660296,7.19735138,13.895,13.894,9.33090518]
[1672798661132,14.39470276,13.895,13.894,9.33090518]
[1672798661344,7.19735138,13.895,13.894,9.33090518]
[1672798662722,71.0542,13.908,13.906,71.68951443]
[1672798662919,5.3470501,14.328,13.906,71.68951443]
[1672798662920,15.0,14.316,13.906,71.68951443]
[1672798663133,7.19114052,13.907,13.906,71.68951443]
[1672798663878,10.33314052,13.907,13.906,71.68951443]
[1672798669785,7.19114052,13.907,13.906,71.68951443]
[1672798671570,7.19114052,13.907,13.906,39.50377256]
[1672798671766,33.70022267,13.906,13.897,30.0]
[1672798672410,7.19114052,13.898,13.897,30.0]
[1672798672621,33.70022267,13.906,13.898,13.39351736]
[1672798672819,7.1952799,13.899,13.898,13.39351736]
[1672798673444,33.70022267,13.906,13.899,30.0]
[1672798673864,7.19476222,13.9,13.899,30.0]
[1672798674083,33.70022267,13.906,13.899,30.0]
[1672798674413,7.19476222,13.9,13.899,84.01]
[1672798674732,0.00076222,13.9,13.899,84.01]
[1672798675251,0.00076222,13.9,13.899,30.0]
[1672798675445,7.19476222,13.9,13.899,30.0]
[1672798677031,0.00076222,13.9,13.899,30.0]
[1672798677255,70.4004,13.912,13.899,30.0]
[1672798677467,7.19476222,13.9,13.899,30.0]
[1672798677668,0.00076222,13.9,13.899,30.0]
[1672798678208,25.15568558,13.9,13.899,1.14646755]
[1672798678397,32.3504478,13.9,13.899,1.14646755]
[1672798678822,104.93090163,13.911,13.899,1.14646755]
[1672798679151,7.19476222,13.9,13.899,1.14646755]
[1672798679347,0.00076222,13.9,13.899,1.14646755]
[1672798679769,25.16135477,13.9,13.899,1.14646755]
[1672798679983,104.93090163,13.911,13.899,1.14646755]
[1672798680191,104.93090163,13.911,13.901,30.0]
[1672798680395,7.19372707,13.902,13.901,30.0]
[1672798680612,104.93090163,13.911,13.901,30.0]
[1672798680939,0.00372707,13.902,13.901,30.0]
[1672798682413,104.93090163,13.911,13.901,30.0]
[1672798683451,7.19372707,13.902,13.901,30.0]
[1672798683780,0.00372707,13.902,13.901,30.0]
[1672798684181,104.93090163,13.911,13.901,30.0]
[1672798684508,5.3470501,13.927,13.901,30.0]
[1672798684509,34.46,13.924,13.902,866.5]
[1672798684727,5.3470501,13.927,13.903,72.9411051]
[1672798684934,22.29760344,13.923,13.905,46.01417787]
[1672798685127,22.29760344,13.923,13.908,55.44807835]
[1672798685342,22.29760344,13.923,13.908,34.38755214]
[1672798685544,22.29760344,13.923,13.91,34.38755214]
[1672798686083,7.18907261,13.911,13.907,47.9133]
[1672798686296,7.18907261,13.911,13.901,54.6725]
[1672798686487,7.18907261,13.911,13.901,108.6725]
[1672798686703,0.00907261,13.902,13.901,108.6725]
[1672798686909,33.96,13.926,13.903,19.95753119]
[1672798687119,33.96,13.926,13.904,30.0]
[1672798687572,7.19217492,13.905,13.904,30.0]
[1672798687757,0.00017492,13.905,13.904,30.0]
[1672798687965,33.96,13.926,13.904,30.0]
[1672798688181,33.96,13.926,13.905,812.49782508]
[1672798688403,33.96,13.926,13.907,30.0]
[1672798688613,34.13,13.929,13.908,37.697593]
[1672798688827,34.13,13.929,13.909,30.0]
[1672798689028,34.13,13.929,13.911,30.0]
[1672798689250,34.14,13.926,13.912,37.697593]
[1672798689665,7.18803911,13.913,13.912,37.697593]
[1672798689867,7.18803911,13.913,13.907,30.0]
[1672798690101,7.18803911,13.908,13.907,30.0]
[1672798690813,6.18803911,13.908,13.907,30.0]
[1672798691020,0.00803911,13.908,13.907,30.0]
[1672798695757,41.34,13.926,13.908,30.0]
[1672798695977,22.29760344,13.924,13.91,30.0]
[1672798696195,22.29760344,13.924,13.911,32.3238778]
[1672798696401,22.29760344,13.924,13.912,30.0]
[1672798696611,28.6005501,13.927,13.913,32.3238778]
[1672798696810,5.3470501,13.927,13.914,30.0]
[1672798697020,5.3470501,13.927,13.915,32.3238778]
[1672798697233,5.3470501,13.927,13.916,30.0]
[1672798697445,5.3470501,13.927,13.917,32.3238778]
[1672798697663,5.3470501,13.927,13.918,30.0]
[1672798697867,5.3470501,13.927,13.92,30.0]
[1672798698190,5.3470501,13.927,13.921,32.3238778]
[1672798698406,7.183392,13.922,13.921,32.3238778]
[1672798698624,5.3470501,13.927,13.922,30.0]
[1672798698926,0.00287603,13.923,13.922,30.0]
[1672798699328,0.00287603,13.923,13.922,62.3238778]
[1672798699533,41.12,13.942,13.923,30.0]
[1672798699760,41.12,13.942,13.924,61.58199964]
[1672798700080,40.42,13.945,13.925,30.0]
[1672798700295,47.3762,13.947,13.927,30.0]
[1672798700296,40.42,13.946,13.927,30.0]
[1672798700506,40.42,13.946,13.928,61.58199964]
[1672798700691,23.0162,13.968,13.933,124.67598104]
[1672798700905,72.3077,13.967,13.935,30.0]
[1672798701118,72.3077,13.967,13.936,50.60712474]
[1672798701344,70.81336017,13.967,13.937,30.0]
[1672798701655,5.47,13.966,13.938,50.60712474]
[1672798701866,5.47,13.966,13.94,50.60712474]
[1672798702287,5.47,13.966,13.942,30.0]
[1672798702601,5.47,13.966,13.943,50.60712474]
[1672798702919,7.17205767,13.944,13.939,30.0]
[1672798703324,0.0041158,13.94,13.939,30.0]
[1672798703540,725.6570501,13.97,13.944,21.5120572]
[1672798703757,725.6570501,13.97,13.945,191.57075398]
[1672798703973,725.6570501,13.97,13.946,30.0]
[1672798704175,725.6570501,13.97,13.947,82.93495398]
[1672798704387,7.17000072,13.948,13.947,82.93495398]
[1672798704615,725.6570501,13.97,13.948,21.40651349]
[1672798704798,30.0,13.969,13.949,29.11495398]
[1672798705009,7.16897269,13.95,13.949,29.11495398]
[1672798705225,7.16897269,13.95,13.948,21.40651349]
[1672798705436,7.16897269,13.949,13.948,21.40651349]
[1672798705655,0.00097269,13.949,13.948,21.40651349]
[1672798705862,0.00097269,13.949,13.948,30.79619397]
[1672798706295,0.00097269,13.949,13.948,21.40651349]
[1672798706923,0.00097269,13.949,13.948,32.04957394]
[1672798707121,0.00097269,13.949,13.948,21.40651349]
[1672798708818,0.00097269,13.949,13.948,34.2556966]
[1672798709123,0.00097269,13.949,13.948,21.40651349]
[1672798711437,720.61,13.96,13.949,30.0]
[1672798711628,13.62,13.969,13.949,30.0]
[1672798712056,7.16897269,13.95,13.948,21.40651349]
[1672798712266,30.0,13.968,13.948,21.40651349]
[1672798712267,12.73,13.967,13.948,21.40651349]
[1672798712481,7.16948667,13.949,13.948,21.40651349]
[1672798712696,12.73,13.967,13.949,30.0]
[1672798712914,69.316,13.969,13.949,30.0]
[1672798712915,12.73,13.968,13.949,30.0]
[1672798713115,7.16897269,13.95,13.949,30.0]
[1672798713317,7.269e-05,13.95,13.948,21.40651349]
[1672798713525,7.269e-05,13.949,13.948,21.40651349]
[1672798718672,13.46007269,13.949,13.948,21.40651349]
[1672798718992,30.0,13.948,13.944,0.50697069]
[1672798719212,7.269e-05,13.945,13.944,0.50697069]
[1672798719523,13.46007269,13.945,13.944,0.50697069]
[1672798719738,7.269e-05,13.945,13.944,0.50697069]
[1672798723724,7.269e-05,13.945,13.928,30.0]
[1672798724139,7.269e-05,13.93,13.928,30.0]
[1672798724347,6.13048367,13.948,13.937,0.06]
[1672798724559,13.89,13.949,13.937,0.06]
[1672798724771,7.1751453,13.938,13.937,0.06]
[1672798729501,722.2,13.95,13.938,30.0]
[1672798729714,722.2,13.95,13.938,83.86]
[1672798729922,7.17463051,13.939,13.938,30.0]
[1672798730463,7.17463051,13.939,13.937,0.06]
[1672798730879,7.17463051,13.938,13.937,0.06]
[1672798733079,0.00063051,13.938,13.937,0.06]
[1672798740853,0.00063051,13.938,13.931,0.06]
[1672798741068,0.00063051,13.932,13.931,0.06]
[1672798752971,0.24726358,13.932,13.931,0.06]
[1672798759480,69.7609,13.944,13.932,30.0]
[1672798759807,7.17772036,13.933,13.932,30.0]
[1672798759999,4.072e-05,13.933,13.932,30.0]
[1672798760421,0.24667379,13.933,13.932,142.1188]
[1672798760639,0.00667379,13.933,13.932,142.1188]
[1672798760943,7.18439415,13.933,13.932,142.1188]
[1672798761149,46.0404,13.947,13.932,30.0]
[1672798761364,27.99,13.953,13.933,114.3107]
[1672798761583,27.99,13.953,13.934,30.0]
[1672798761798,27.99,13.953,13.935,11.08059127]
[1672798761799,0.24663307,13.949,13.935,11.08059127]
[1672798762410,7.1761751,13.936,13.934,30.0]
[1672798762848,48.8419,13.949,13.934,30.0]
[1672798763064,0.21669012,13.935,13.934,30.0]
[1672798763277,0.00669012,13.935,13.934,83.88]
[1672798763487,3.8046038,13.935,13.934,30.0]
[1672798763807,0.21891368,13.935,13.934,30.0]
[1672798764019,27.91,13.957,13.934,30.0]
[1672798764544,0.21891368,13.949,13.934,30.0]
[1672798764968,0.00669012,13.935,13.934,30.0]
[1672798765156,0.21891368,13.949,13.934,30.0]
[1672798765370,0.21891368,13.949,13.935,53.87]
[1672798765821,0.21891368,13.949,13.936,30.0]
[1672798766000,7.17566017,13.937,13.936,30.0]
[1672798766213,0.00066017,13.937,13.936,30.0]
[1672798766422,7.18404717,13.937,13.936,30.0]
[1672798766629,72.0215,13.958,13.937,7.17995283]
[1672798766855,72.0215,13.958,13.939,30.0]
[1672798767063,0.188387,13.957,13.941,30.0]
[1672798767278,0.188387,13.957,13.942,29.86214539]
[1672798767488,7.17257209,13.943,13.942,29.86214539]
[1672798768013,7.36095909,13.943,13.942,29.86214539]
[1672798768227,4.95625909,13.943,13.941,53.749]
[1672798768544,4.95625909,13.942,13.941,30.0]
[1672798768938,5.13931537,13.942,13.941,30.0]
[1672798773368,5.13931537,13.942,13.937,7.17995283]
[1672798773589,4.95625909,13.938,13.937,7.17995283]
[1672798774006,5.13398236,13.938,13.937,7.17995283]
[1672798774223,5.13398236,13.938,13.935,30.0]
[1672798774643,4.95625909,13.937,13.935,30.0]
[1672798775067,5.13398236,13.937,13.935,30.0]
[1672798778629,0.00398236,13.937,13.935,30.0]
[1672798778848,48.907,13.956,13.937,30.0]
[1672798779259,48.907,13.956,13.937,29.82227673]
[1672798779469,0.17772327,13.955,13.937,29.82227673]
[1672798779777,7.1751453,13.938,13.937,29.82227673]
[1672798780094,0.16766533,13.938,13.937,29.82227673]
[1672798780304,48.772,13.955,13.937,29.82227673]
[1672798780848,0.16766533,13.954,13.937,29.82227673]
[1672798781159,7.1751453,13.938,13.937,29.82227673]
[1672798781358,4.53e-05,13.938,13.937,29.82227673]
[1672798781682,0.16771063,13.938,13.937,29.82227673]
[1672798782533,0.16771063,13.938,13.936,30.0]
[1672798782718,4.53e-05,13.937,13.936,30.0]
[1672798783059,0.16296593,13.937,13.936,30.0]
[1672798783248,7.17566017,13.937,13.936,30.0]
[1672798783468,7.3385808,13.937,13.936,30.0]
[1672798786309,7.3385808,13.937,13.932,30.0]
[1672798786525,7.3385808,13.937,13.931,30.06]
[1672798786717,7.17566017,13.932,13.931,30.06]
[1672798786926,7.17566017,13.932,13.931,0.06]
[1672798787158,7.33405462,13.932,13.931,0.06]
[1672798787343,33.33230028,13.932,13.931,0.06]
[1672798791144,7.43528847,13.942,13.932,7.16999972]
[1672798791339,0.15839445,13.942,13.934,30.0]
[1672798791550,0.15839445,13.941,13.934,30.0]
[1672798791977,7.17669012,13.935,13.934,30.0]
[1672798792186,0.15839445,13.941,13.934,30.0]
[1672798792399,7.33060414,13.935,13.934,30.0]
[1672798792617,46.52,13.952,13.934,30.0]
[1672798792801,0.15391402,13.949,13.934,30.0]
[1672798793012,7.17669012,13.935,13.934,30.0]
[1672798793468,0.15400414,13.935,13.934,30.0]
[1672798794914,0.15400414,13.935,13.932,23.37]
[1672798795559,9.012e-05,13.933,13.932,23.37]
[1672798795767,9.012e-05,13.933,13.931,48.6435]
[1672798795989,9.012e-05,13.932,13.931,48.6435]
[1672798796385,0.14964952,13.932,13.931,48.6435]
[1672798798175,0.14964952,13.932,13.931,0.06]
[1672798799036,9.012e-05,13.932,13.931,0.06]
[1672798799973,0.14964952,13.932,13.931,0.06]
[1672798803772,0.14964952,13.932,13.921,53.0526]
[1672798803994,0.14964952,13.932,13.921,23.0526]
[1672798804176,9.012e-05,13.922,13.921,23.0526]
[1672798804611,0.14964952,13.922,13.921,23.0526]
[1672798805441,0.14964952,13.922,13.918,140.8923]
[1672798805757,9.012e-05,13.919,13.918,140.8923]
[1672798806195,0.14964952,13.919,13.918,140.8923]
[1672798811434,0.14964952,13.919,13.918,110.8923]
[1672798812267,0.14964952,13.919,13.904,53.99]
[1672798812485,5.46255153,13.918,13.916,30.0]
[1672798812813,0.1495594,13.917,13.916,141.4823]
[1672798813021,179.1562,13.934,13.916,141.4823]
[1672798813022,24.0436,13.934,13.917,30.0]
[1672798813215,7.18545664,13.918,13.917,30.0]
[1672798813428,1.84245664,13.918,13.917,30.0]
[1672798813643,1.99201604,13.918,13.917,30.0]
[1672798815104,1.99201604,13.918,13.915,233.49996675]
[1672798815325,1.84245664,13.916,13.915,233.49996675]
[1672798815731,1.99201604,13.916,13.915,233.49996675]
[1672798817741,47.0,13.925,13.916,1.83798396]
[1672798818074,0.14533345,13.924,13.916,1.83798396]
[1672798818391,7.18597299,13.917,13.916,1.83798396]
[1672798818913,7.33130644,13.917,13.916,1.83798396]
[1672798819550,47.55,13.93,13.916,1.83798396]
[1672798819742,0.14955942,13.929,13.917,30.0]
[1672798819948,7.18545664,13.918,13.917,30.0]
[1672798820381,0.14955942,13.929,13.917,30.0]
[1672798820594,0.14955942,13.929,13.917,144.9792]
[1672798820791,0.1411078,13.928,13.917,144.9792]
[1672798821002,0.00545664,13.918,13.917,144.9792]
[1672798821325,0.14656444,13.918,13.917,144.9792]
[1672798821952,0.34208784,13.918,13.917,144.9792]
[1672798822149,0.34208784,13.918,13.916,48.00758396]
[1672798822150,0.34208784,13.918,13.916,1.83798396]
[1672798822360,0.00545664,13.917,13.916,1.83798396]
[1672798822794,0.34208784,13.917,13.916,1.83798396]
[1672798823432,0.34208784,13.917,13.914,30.0]
[1672798823640,0.34208784,13.917,13.909,124.96826269]
[1672798823859,0.34208784,13.917,13.908,123.63515295]
[1672798823860,0.14955942,13.916,13.908,123.63515295]
[1672798824076,0.00545664,13.909,13.908,123.63515295]
[1672798824380,0.00545664,13.909,13.908,153.63515295]
[1672798824596,0.34208784,13.909,13.908,153.63515295]
[1672798824798,0.14955942,13.916,13.91,128.54048635]
[1672798825001,0.14955942,13.916,13.912,120.69865114]
[1672798825208,0.3366312,13.915,13.912,120.69865114]
[1672798825431,0.3366312,13.915,13.913,30.0]
[1672798825838,0.3366312,13.915,13.91,128.54048635]
[1672798826173,0.14955942,13.914,13.91,158.54048635]
[1672798826580,0.3366312,13.913,13.911,156.10395763]
[1672798827003,0.3366312,13.913,13.912,30.0]
[1672798827216,0.3366312,13.913,13.912,20.0]
[1672798827620,7.52467031,13.913,13.912,20.0]
[1672798828272,7.52467031,13.913,13.91,158.54048635]
[1672798828465,0.3366312,13.913,13.909,124.96826269]
[1672798828680,7.18907261,13.911,13.909,124.96826269]
[1672798828893,7.18907261,13.911,13.91,158.54048635]
[1672798829107,7.18907261,13.911,13.91,158.21336154]
[1672798829529,7.51619742,13.911,13.91,158.21336154]
[1672798829956,7.51619742,13.911,13.909,124.96826269]
[1672798830167,7.18907261,13.91,13.909,124.96826269]
[1672798830572,7.51619742,13.91,13.906,124.15565066]
[1672798830779,0.14955942,13.909,13.906,124.15565066]
[1672798831005,0.14955942,13.909,13.908,123.63515295]
[1672798831416,0.46744563,13.909,13.908,123.63515295]
[1672798831623,14.84765847,13.909,13.908,123.63515295]
[1672798832143,7.65755205,13.909,13.906,124.15565066]
[1672798832357,48.18788621,13.908,13.9,125.18333466]
[1672798832565,0.14955942,13.907,13.9,125.18333466]
[1672798832780,0.46744563,13.907,13.902,126.46390937]
[1672798833088,0.31788621,13.906,13.901,30.0]
[1672798833300,0.14955942,13.905,13.9,125.18333466]
[1672798833724,47.83,13.918,13.906,131.03200907]
[1672798833948,47.82,13.92,13.906,130.73207306]
[1672798834145,47.82,13.922,13.907,30.0]
[1672798834354,0.29993601,13.919,13.906,130.73207306]
[1672798834578,1.09015007,13.907,13.906,6.5764224]
[1672798834987,1.39008608,13.907,13.906,36.5764224]
[1672798835191,1.39008608,13.907,13.905,121.36138347]
[1672798835616,1.39008608,13.907,13.904,128.64765182]
[1672798835617,1.09015007,13.906,13.904,128.64765182]
[1672798836044,0.29993601,13.905,13.902,126.46390937]
[1672798836255,1.09015007,13.903,13.9,125.18333466]
[1672798836661,1.09015007,13.901,13.9,125.18333466]
[1672798837087,1.38161778,13.901,13.9,125.18333466]
[1672798838451,1.38161778,13.901,13.897,30.0]
[1672798838673,1.09015007,13.9,13.897,30.0]
[1672798839100,1.38161778,13.9,13.897,30.0]
[1672798840886,48.32,13.914,13.9,30.0]
[1672798841086,48.22,13.92,13.9,29.70853229]
[1672798841299,14.38848922,13.901,13.9,29.70853229]
[1672798841717,0.29146771,13.901,13.9,29.70853229]
[1672798841929,48.23,13.918,13.9,29.70853229]
[1672798841930,48.21,13.924,13.901,7.18428768]
[1672798842144,0.58146771,13.917,13.901,7.18428768]
[1672798842460,14.38745414,13.902,13.901,7.18428768]
[1672798842669,0.29146771,13.917,13.901,7.18428768]
[1672798842883,14.67892185,13.902,13.901,7.18428768]
[1672798843278,48.21,13.922,13.901,7.18428768]
[1672798843496,48.21,13.924,13.901,7.18428768]
[1672798843712,0.26679014,13.921,13.901,7.18428768]
[1672798843935,14.38745414,13.902,13.901,7.18428768]
[1672798844243,47.85,13.92,13.901,7.18428768]
[1672798844460,30.0,13.933,13.901,7.18428768]
[1672798844461,14.39424428,13.902,13.901,7.18428768]
[1672798844987,7.46051721,13.902,13.901,7.18428768]
[1672798845385,21.84797135,13.902,13.901,7.18428768]
[1672798845720,14.65424428,13.902,13.901,7.18428768]
[1672798845909,29.04169842,13.902,13.901,7.18428768]
[1672798846117,14.65424428,13.902,13.901,7.18428768]
[1672798846348,29.04169842,13.902,13.901,7.18428768]
[1672798846545,14.65424428,13.902,13.901,7.18428768]
[1672798846876,29.04169842,13.902,13.901,7.18428768]
[1672798847097,14.65424428,13.902,13.901,7.18428768]
[1672798847399,47.85,13.92,13.902,7.18202865]
[1672798847593,47.88,13.924,13.902,7.18202865]
[1672798848016,14.38641924,13.903,13.902,7.18202865]
[1672798848551,7.45177292,13.903,13.902,7.18202865]
[1672798848972,21.83819216,13.903,13.902,7.18202865]
[1672798849187,14.64498254,13.903,13.902,7.18202865]
[1672798849497,29.03140178,13.903,13.902,7.18202865]
[1672798849717,14.64498254,13.903,13.902,7.18202865]
[1672798850022,29.03140178,13.903,13.902,7.18202865]
[1672798850231,14.64498254,13.903,13.902,7.18202865]
[1672798850434,21.83819216,13.903,13.902,7.18202865]
[1672798850647,7.45177292,13.903,13.902,7.18202865]
[1672798851473,14.64498254,13.903,13.902,7.18202865]
[1672798851702,7.45177292,13.903,13.902,7.18202865]
[1672798851912,14.64498254,13.903,13.902,7.18202865]
[1672798852123,7.45177292,13.903,13.902,7.18202865]
[1672798852542,21.83819216,13.903,13.902,7.18202865]
[1672798852759,14.64498254,13.903,13.902,7.18202865]
[1672798852953,21.83819216,13.903,13.902,7.18202865]
[1672798853162,7.45177292,13.903,13.902,7.18202865]
[1672798853591,7.45177292,13.903,13.902,6.68202865]
[1672798854026,14.64498254,13.903,13.902,6.68202865]
[1672798854248,7.45177292,13.903,13.902,6.68202865]
[1672798854443,14.64498254,13.903,13.902,6.68202865]
[1672798854660,7.45177292,13.903,13.902,6.68202865]
[1672798855059,14.64498254,13.903,13.902,6.68202865]
[1672798855274,7.45177292,13.903,13.902,6.68202865]
[1672798855488,14.64498254,13.903,13.902,6.68202865]
[1672798855712,7.45177292,13.903,13.901,7.18428768]
[1672798856118,7.19372707,13.902,13.901,7.18428768]
[1672798856545,14.63114849,13.902,13.901,7.18428768]
[1672798856742,7.43742142,13.902,13.901,7.18428768]
[1672798856958,7.43742142,13.902,13.9,29.70853229]
[1672798857168,7.19372707,13.901,13.9,29.70853229]
[1672798857495,14.63166603,13.901,13.898,30.0]
[1672798857692,7.43793896,13.901,13.898,30.0]
[1672798858112,7.19476222,13.9,13.898,30.0]
[1672798858633,14.63321879,13.9,13.897,30.0]
[1672798858848,7.43845657,13.9,13.892,30.0]
[1672798859164,21.82798101,13.9,13.892,30.0]
[1672798859373,14.63321879,13.9,13.892,30.0]
[1672798859588,21.82798101,13.9,13.892,30.0]
[1672798859787,7.43845657,13.9,13.892,30.0]
[1672798860656,14.63321879,13.9,13.892,30.0]
[1672798860847,7.43845657,13.9,13.892,30.0]
[1672798861072,14.63321879,13.9,13.892,30.0]
[1672798861273,7.43845657,13.9,13.892,30.0]
[1672798861599,14.63321879,13.9,13.892,30.0]
[1672798861817,7.43845657,13.9,13.892,30.0]
[1672798862118,14.63321879,13.9,13.892,30.0]
[1672798862434,7.43845657,13.9,13.885,54.07]
[1672798862652,7.43845657,13.9,13.878,35.3470501]
[1672798862653,14.63321879,13.9,13.89,50.0]
[1672798862959,14.87374504,13.9,13.89,50.0]
[1672798863181,22.06850726,13.9,13.89,50.0]
[1672798863362,14.87374504,13.9,13.89,50.0]
[1672798863698,22.06850726,13.9,13.89,50.0]
[1672798863896,14.87374504,13.9,13.89,50.0]
[1672798864309,14.87374504,13.9,13.891,30.0]
[1672798864520,7.43845657,13.9,13.891,30.0]
[1672798864745,14.63321879,13.9,13.891,30.0]
[1672798864939,7.43845657,13.9,13.891,30.0]
[1672798865801,14.63321879,13.9,13.891,30.0]
[1672798866001,7.43845657,13.9,13.891,30.0]
[1672798866330,14.63321879,13.9,13.891,30.0]
[1672798866521,7.43845657,13.9,13.891,30.0]
[1672798866737,14.63321879,13.9,13.891,30.0]
[1672798866946,7.43845657,13.9,13.891,30.0]
[1672798868828,14.63321879,13.9,13.891,30.0]
[1672798869051,7.43845657,13.9,13.891,30.0]
[1672798869256,14.63321879,13.9,13.891,30.0]
[1672798869466,7.43845657,13.9,13.891,30.0]
[1672798869898,14.63321879,13.9,13.89,50.0]
[1672798870090,7.43845657,13.9,13.89,50.0]
[1672798870301,14.63321879,13.9,13.89,50.0]
[1672798870513,14.63321879,13.9,13.878,5.3470501]
[1672798870514,0.24369435,13.891,13.878,5.3470501]
[1672798870722,7.43528847,13.889,13.878,5.3470501]
[1672798870946,7.20564923,13.879,13.878,5.3470501]
[1672798871348,14.65499281,13.879,13.878,5.3470501]
[1672798871559,14.88463205,13.879,13.878,5.3470501]
[1672798872400,22.09028128,13.879,13.878,5.3470501]
[1672798872611,14.88463205,13.879,13.878,5.3470501]
[1672798872926,22.09028128,13.879,13.878,5.3470501]
[1672798873135,14.88463205,13.879,13.878,5.3470501]
[1672798873346,22.09028128,13.879,13.878,5.3470501]
[1672798873554,14.88463205,13.879,13.878,5.3470501]
[1672798874397,22.09028128,13.879,13.878,5.3470501]
[1672798874610,14.88463205,13.879,13.878,5.3470501]
[1672798874823,7.44934358,13.879,13.878,5.3470501]
[1672798875028,7.43528847,13.889,13.878,5.3470501]
[1672798875029,7.43528847,13.889,13.879,30.0]
[1672798875251,49.82,13.898,13.879,30.0]
[1672798875465,7.20513006,13.88,13.879,30.0]
[1672798875669,0.24369435,13.888,13.879,84.09]
[1672798875878,111.6096,13.902,13.881,30.0]
[1672798876081,0.24082651,13.9,13.881,30.0]
[1672798876503,7.20409193,13.882,13.881,30.0]
[1672798876729,0.24082651,13.9,13.882,7.2]
[1672798876942,776.5,13.91,13.884,30.0]
[1672798877152,0.24082651,13.906,13.885,54.07]
[1672798877341,0.24082651,13.906,13.886,30.0]
[1672798877556,0.24082651,13.906,13.887,54.06]
[1672798877984,0.24082651,13.906,13.888,30.0]
[1672798878397,7.20046083,13.889,13.888,30.0]
[1672798878613,0.24082651,13.906,13.888,30.0]
[1672798878823,0.00082651,13.889,13.888,30.0]
[1672798879031,7.20046083,13.889,13.888,30.0]
[1672798879253,0.24088734,13.889,13.888,30.0]
[1672798879460,7.20046083,13.889,13.888,30.0]
[1672798879669,0.24128734,13.889,13.888,30.0]
[1672798879889,727.94,13.91,13.888,30.0]
[1672798880204,7.68082651,13.889,13.888,30.0]
[1672798880410,7.44128734,13.889,13.888,30.0]
[1672798880624,0.00028734,13.889,13.888,30.0]
[1672798880821,0.24082651,13.889,13.888,30.0]
[1672798881039,7.44128734,13.889,13.888,30.0]
[1672798882734,7.44128734,13.889,13.876,54.1]
[1672798883156,7.20046083,13.882,13.871,30.0]
[1672798883340,7.20046083,13.882,13.872,54.12]
[1672798883556,7.4141229,13.882,13.873,30.0]
[1672798883768,7.4141229,13.882,13.874,54.11]